Workbook

Sheet HFF
B1: Tel. +49 711 8201-0 | I1: eMail: | J1: info@LTG.de
S4: Volumenstrom Bereich | V4: V_max_St | W4: NW 100
S5: 250 | T5: m^3/H | V5: 80 | W5: m³/h
S6: min
B9: =VLOOKUP("LTG Deckeninduktionsgerät HFF ",Legende,IF(E$19="German",1,IF(E$19="English",2,3))) -> LTG Deckeninduktionsgerät HFF | J9: LTG Aktiengesellschaft
T10: Sprachauswahl
H11: Date: | I11: =TODAY() -> 2026-06-23 | T11: German
H12: Editor: | T12: English
H13: Project:
H14: Alternative: | O14: Korrekturfaktoren
O15: delta T (Taupunkt) und Wasservorlauf | P15: =E34-E42 -> 8.771258916
O16: Korrekturfaktor Kondensationswanne (Korrekturfaktor durch Druckverlust der Kondensationswanne) | P16: =IF(AD19=1,0.97,1) -> 0.97
O17: Korrekturfaktor welcher durch das Kondensierende Wasser entsteht (Qlatent verlust) | P17: =IF(P15>0,-0.02083*P15+1,1) -> 0.8172946768 | AC17: Auswahlmöglichkeiten
E18: Sprache / Language: | N18: Baugröße für Marko | O18: Korrekturfaktor durch elektr. Nacherhitzer | P18: =IF(WÜ=AH21,0.927670039194481,1) -> 1 | AC18: Kondensationswanne | AD18: Wert (für Makro) Kondensationswanne | AE18: Baugrößen | AF18: Induktionskotrolle | AG18: Wert Indktionskontrolle für Marko | AH18: Wärmetauscher | AI18: Wert Wärmetauscher | AJ18: Gerätetyp | AK18: Wert Gerätetyp | AL18: Oberfläche Wärmetauscher | AM18: Wert Wärmetauscher Oberfläche für Makro
E19: German | N19: =BG -> 900 | AC19: =IF(Sprache="German", "mit Kondensatwanne", "with condensate tray") -> mit Kondensatwanne | AD19: =IF(OR(E26="ohne Kondensatwanne",E26="without condensate tray"),0,1) -> 1 | AE19: 900 | AF19: =IF(Sprache="German", "mit Induktionskontrolle", "with induction control") -> mit Induktionskontrolle | AG19: =IF(OR(E27="mit Induktionskontrolle", E27="with induction control"), 1,0) -> 0 | AH19: =IF(Sprache="German", "2-Leiter", "2-Pipe-System") -> 2-Leiter | AI19: =IF(WÜ=AH19,2,IF(WÜ=AH20,4,3)) -> 4 | AJ19: =IF(E51="-","G","G") -> G | AK19: =IF(E48="G", 1,IF(E48="K",2,IF(E48="M",3,IF(E48="H",4)))) -> 3 | AL19: =IF(Sprache="German", "standard unbehandelt", "standard") -> standard unbehandelt | AM19: =IF(OR(E25="standard unbehandelt",E25="standard"),0,1) -> 0
D20: =VLOOKUP("Geräteauslegung:",Legende,IF(E$19="German",1,IF(E$19="English",2,3))) -> Geräteauslegung: | O20: Korrekturfaktoren Wärmetauscher (Massenstrom Wasser zu Faktor) | AC20: =IF(Sprache="German", "ohne Kondensatwanne", "without condensate tray") -> ohne Kondensatwanne | AE20: 1200 | AF20: =IF(Sprache="German", "ohne Induktionskontrolle", "without induction control") -> ohne Induktionskontrolle | AH20: =IF(Sprache="German", "4-Leiter", "4-Pipe-System") -> 4-Leiter | AJ20: =IF(E52="-","K","K") -> K | AL20: =IF(Sprache="German", "beschichtet schwarz", "black surface") -> beschichtet schwarz
D21: =VLOOKUP("Baugröße",Legende,IF(Sprache="German",1,IF(Sprache="English",2,3))) -> Baugröße | E21: 900 | O21: Paramter | P21: a | Q21: b | R21: c | S21: Faktor Wärmetauscher Kühlen | T21: Faktor Wärmetauscher Heizen | AH21: =IF(Sprache="German", "2 Leiter m. E-Heizung", "2-Pipe-S w. E-heating") -> 2 Leiter m. E-Heizung | AJ21: =IF(E53="-","M","M") -> M
D22: =VLOOKUP("Höhe:",Legende,IF(Sprache="German",1,IF(Sprache="English",2,3))) -> Höhe: | E22: =IF(AND(AD19=1, WÜ=AH20), 327,IF(AND(WÜ=AH20,AD19=0),238,IF(AND(OR(WÜ=AH19,WÜ=AH21),AD19=1),302,213))) -> 327 | N22: HFF 900 | O22: 2 L | P22: =-0.00000662 -> -6.62e-06 | Q22: 0.00365574 | R22: 0.53571014 | S22: =KWM^2*P22+Q22*KWM+R22 -> 1.00205814 | T22: =WWM^2*P22+Q22*WWM+R22 -> 0.83508414 | AJ22: =IF(E54="-","H","H") -> H
D23: =VLOOKUP("Länge:",Legende,IF(Sprache="German",1,IF(Sprache="English",2,3))) -> Länge: | E23: 616 | N23: HFF 900 | O23: 4 L (Heizkreis) | P23: =-0.00000441 -> -4.41e-06 | Q23: 0.00245696 | R23: 0.68808273 | T23: =WWM^2*P23+Q23*WWM+R23 -> 0.88967873
D24: =VLOOKUP("Wärmeübertrager",Legende,IF(Sprache="German",1,IF(Sprache="English",2,3))) -> Wärmeübertrager | E24: 4-Leiter | F24: =IF(WÜ=AH21,"750 Wel","") ->  | N24: HFF 900 | O24: 4 Leiter (Kühlkreis) | P24: =-0.00000391 -> -3.91e-06 | Q24: 0.00264713 | R24: 0.61706493 | S24: =KWM^2*P24+Q24*KWM+R24 -> 0.99009093
D25: =VLOOKUP("Oberfläche Wärmeübertrager",Legende,IF(Sprache="German",1,IF(Sprache="English",2,3))) -> Oberfläche Wärmeübertrager | E25: standard unbehandelt | N25: HFF 1200 | O25: 4 L (Kühlkreis, gleiche Werte wie 2 Leiter 2 reihig, da nicht gemessen) | P25: =-0.00000662 -> -6.62e-06 | Q25: 0.00365574 | R25: 0.53571014 | S25: =KWM^2*P25+Q25*KWM+R25 -> 1.00205814
D26: =VLOOKUP("Kondensatwanne",Legende,IF(Sprache="German",1,IF(Sprache="English",2,3))) -> Kondensatwanne | E26: mit Kondensatwanne | F26: =IF(AND(E34>E42,E26="ohne Kondensatwanne"),"Auslegung nur mit Kondensatwanne möglich","") ->  | N26: HFF 1200 | O26: 2 L | P26: -7.24e-06 | Q26: 0.00448296 | R26: 0.39677684 | S26: =KWM^2*P26+Q26*KWM+R26 -> 1.00376884 | T26: =WWM^2*P26+Q26*WWM+R26 -> 0.77267284
N27: HFF 1200 | O27: 4 L (Heizkreis, gleiche Werte wie HFF 900 4 L) | P27: =-6*10^(-6) -> -6e-06 | Q27: 0.0035 | R27: 0.5435 | T27: =WWM^2*P27+Q27*WWM+R27 -> 0.8335
N28: FormelVprimär zu Primär 900 | V28: Tausblass = (Tprim*Vprim+I*Vprim*Tansaug+Qsek(CPl*dichte)/(I*Vprim+Vprim)
P29: a | Q29: b | R29: c | S29: Prim erfoderlich | T29: Induktionverhätlniss | V29: Tausblass (kühlen) | W29: Tausblass (Heizen)
D30: =IF(Sprache="German","Auslegungsbedingungen:",IF(Sprache="English","Room Conditions:","Condizioni:")) -> Auslegungsbedingungen: | E30: =VLOOKUP("Kühlen",Legende,IF(E$19="German",1,IF(E$19="English",2,3))) -> Kühlen | F30: =IF(Sprache="German",IF(WÜ="2 Leiter 2 reihig","Oder","Und"),IF(Sprache="English",IF(WÜ="2 Leiter 2 reihig","Or","And"),IF(WÜ="2 Leiter 2 reihig","O","Ed"))) -> Und | G30: =VLOOKUP("Heizen",Legende,IF(E$19="German",1,IF(E$19="English",2,3))) -> Heizen | N30: G 900 | O30: 36 Düsen | S30: =Prim_900_K*1.84 -> 322.9820448 | T30: 5.5 | V30: =((($E$39+273)*Vprim/3600+$T$30*Vprim/3600*($E$31+273)+H51/(1176.56*1.00692))/($T$30*Vprim/3600+Vprim/3600))-273 ->  | W30: =((($E$39+273)*Vprim/3600+$T$30*Vprim/3600*($E$31+273)+H57/(1176.56*1.00692))/($T$30*Vprim/3600+Vprim/3600))-273 -> 
D31: =VLOOKUP("Ansaugtemperatur",Legende,IF(Sprache="German",1,IF(Sprache="English",2,3))) -> Ansaugtemperatur | E31: 26 | G31: 22 | N31: K 900 | O31: 48 Düsen | P31: 0.02082 | Q31: 0.2859 | R31: -9.8419 | S31: =(Vprim^2*P31+Vprim*Q31+R31)*1.2 -> 175.53372 | T31: 4.8 | V31: =((($E$39+273.15)*Vprim/3600+$T$31*Vprim/3600*($E$31+273.15)+H52/(1176.56*1.00692))/($T$31*Vprim/3600+Vprim/3600))-273.15 -> 16.12845128 | W31: =((($G$39+273)*Vprim/3600+$T$31*Vprim/3600*($G$31+273)+H58/(1176.56*1.00692))/($T$31*Vprim/3600+Vprim/3600))-273 -> 28.53695422
D32: =VLOOKUP("relative Feuchte Ansaugluft",Legende,IF(E$19="German",1,IF(E$19="English",2,3))) -> relative Feuchte | E32: 50 | N32: M 900 | O32: 66 Düsen | P32: 0.0144 | Q32: -0.186 | R32: 7.7061 | S32: =(Vprim^2*P32+Vprim*Q32+R32)*1.2 -> 101.98332 | T32: 3.5 | V32: =((($E$39+273.15)*Vprim/3600+$T$32*Vprim/3600*($E$31+273.15)+H53/(1176.56*1.00692))/($T$32*Vprim/3600+Vprim/3600))-273.15 -> 15.75194316 | W32: =((($G$39+273)*Vprim/3600+$T$32*Vprim/3600*($G$31+273)+H59/(1176.56*1.00692))/($T$32*Vprim/3600+Vprim/3600))-273 -> 28.39328408
N33: H 900 | O33: 80 Düsen | P33: 0.0039 | Q33: 1.1262 | R33: -54.353 | S33: =(Vprim^2*P33+Vprim*Q33+R33) -> 60.703 | T33: 3.1 | V33: =((($E$39+273.15)*Vprim/3600+$T$33*Vprim/3600*($E$31+273.15)+H54/(1176.56+1.00692))/($T$33*Vprim/3600+Vprim/3600))-273.15 -> 16.14737685 | W33: =((($G$39+273)*Vprim/3600+$T$33*Vprim/3600*($G$31+273)+H60/(1176.56*1.00692))/($T$33*Vprim/3600+Vprim/3600))-273 -> 27.36862403
D34: =VLOOKUP("Taupunkttemperatur Raumluft",Legende,IF(Sprache="German",1,IF(Sprache="English",2,3))) -> Taupunkttemperatur Raumluft | E34: =(241.2*LN(E32/100)+4222.03716*E31/(241.2+E31))/(17.5043-LN(E32/100)-17.5043*E31/(241.2+E31)) -> 14.77125892 | N34: FormelVprimär zu Primär 1200
D35: =VLOOKUP("Wassergehalt Raumluft (Kühlfall)",Legende,IF(E$19="German",1,IF(E$19="English",2,3))) -> Wassergehalt Raumluft (Kühlfall) | E35: =(E32/100)*(0.0357*E31^2-0.4941*E31+10.356) -> 10.8213 | P35: a | Q35: b | R35: c | S35: Prim erfoderlich
N36: G 1200 | O36: 48 Düsen | P36: 0.02082 | Q36: 0.2859 | R36: -9.8419 | S36: =(Vprim^2*P36+Vprim*Q36+R36)*1.2 -> 175.53372
D37: =IF(Sprache="German","Primärseite (Luftseite):",IF(Sprache="English","Primary Side (Air Side):","Lato primario (lato aria):")) -> Primärseite (Luftseite): | E37: =IF(AND(Sprache="German",Vprim>120),"2 Primärstutzen notwendig",IF(AND(Sprache="English",Vprim>120),"two air connection are required","")) ->  | N37: K 1200 | O37: 66 Düsen | P37: 0.0144 | Q37: -0.186 | R37: 7.7061 | S37: =(Vprim^2*P37+Vprim*Q37+R37)*1.2 -> 101.98332
D38: =VLOOKUP("Primärvolumenstrom",Legende,IF(Sprache="German",1,IF(Sprache="English",2,3))) -> Primärluftvolumenstrom | E38: 80 | G38: =Vprim -> 80 | N38: M 1200 | O38: 90 Düsen | P38: 0.00924 | Q38: -0.12412 | R38: -0.12412 | S38: =(Vprim^2*P38+Vprim*Q38+R38) -> 49.08228
D39: =VLOOKUP("Primärlufttemperatur",Legende,IF(E$19="German",1,IF(E$19="English",2,3))) -> Primärlufttemperatur | E39: 18 | G39: 18 | N39: H 1200 | O39: 105 Düsen | S39: =Prim_1200_M/1.4 -> 35.05877143
N40: Korrekturfaktor Primärdruck
D41: =IF(Sprache="German","Sekundärseite (Wasserseite):",IF(Sprache="English","Secondary Side (Water Side):","Lato secondario (lato acqua):")) -> Sekundärseite (Wasserseite): | P41: a | Q41: b | R41: c | S41: Faktor Primärdruck
D42: =VLOOKUP("Vorlauftemperatur",Legende,IF(E$19="German",1,IF(E$19="English",2,3))) -> Vorlauftemperatur | E42: 6 | G42: 50 | N42: G 900 | O42: 36 Düsen | P42: -1.05e-05 | Q42: 0.0067197 | R42: 0.4269959 | S42: =Prim_900_G^2*P42+Q42*Prim_900_G+R42 -> 1.502005633
D43: =VLOOKUP("Nenn-Wassermassenstrom",Legende,IF(E$19="German",1,IF(E$19="English",2,3))) -> Nenn-Wassermassenstrom | E43: =IF(AND(OR(WÜ=AH19,WÜ=AH21),BG=900),P115,IF(AND(WÜ=AH20,BG=1200),P118,IF(AND(OR(WÜ=AH19,WÜ=AH21),BG=1200),P117,IF(AND(WÜ=AH20,BG=900),P116)))) -> 200 | G43: =IF(AND(OR(WÜ=AH19,WÜ=AH21),BG=900),Q115,IF(AND(WÜ=AH20,BG=1200),Q118,IF(AND(OR(WÜ=AH19,WÜ=AH21),BG=1200),Q117,IF(AND(WÜ=AH20,BG=900),Q116)))) -> 100 | N43: K 900 | O43: 48 Düsen (gemessen) | P43: -1.05e-05 | Q43: 0.0067197 | R43: 0.4269959 | S43: =Prim_900_K^2*P43+Q43*Prim_900_K+R43 -> 1.283002926
D44: =IF(Sprache="German", "wasserseitiger Druckverlust", "Differential pressure on waterside") -> wasserseitiger Druckverlust | E44: =IF(AND(BG=900,WÜ= AH20),S96,IF(AND(BG=900,OR(WÜ=AH19,WÜ=AH21)),S97,IF(BG=1200,S98))) -> 17.67120837 | G44: =IF(AND(BG=900,WÜ=AH20),T95,IF(AND(BG=900,WÜ=AH19),T97,IF(AND(BG=1200,WÜ=AH19),T98,T95))) -> 4.68853835 | H44: =VLOOKUP("Druckverlust nur Wärmeübertrager",Legende,IF(E$19="German",1,IF(E$19="English",2,3))) -> Druckverlust nur Wärmeübertrager | N44: M 900 | O44: 66 Düsen | P44: -1.05e-05 | Q44: 0.0067197 | R44: 0.4269959 | S44: =Prim_900_M^2*P44+Q44*Prim_900_M+R44 -> 1.003086941
D45: =VLOOKUP("Wassermassenstrom",Legende,IF(Sprache="German",1,IF(Sprache="English",2,3))) -> Wassermassenstrom | E45: 200 | G45: 100 | N45: H 900 | O45: 80 Düsen | P45: -1.05e-05 | Q45: 0.0067197 | R45: 0.4269959 | S45: =Prim_900_H^2*P44+Q45*Prim_900_H+R45 -> 0.7962108799
N46: G 1200 | O46: 48 Düsen | P46: -1.05e-05 | Q46: 0.0067197 | R46: 0.4269959 | S46: =Prim_1200_G^2*P45+Q46*Prim_1200_G+R46 -> 1.283002926
M47: M | N47: HFF 900 | O47: 4 L | Q47: ge. | R47: 63.72542 | S47: =R47*KOR_WANNE*KORREKT_LATENT*Korrekturfaktor_ELEKT_NAcherehitzer*Kor_WT_4L_900*Faktor_Prim_900_M -> 50.17377403 | T47: =S47*($E$42-$E$31) -> -1003.475481 | U47: =(T47/$P$17-T47) -> -224.3258365
C48: =IF(Sprache="German","Gewählter Düsentyp:","Selected Nozzle Type") -> Gewählter Düsentyp: | E48: M
C49: =VLOOKUP("Kühlen",Legende,IF(Sprache="German",1,IF(Sprache="English",2,3))) -> Kühlen | N49: K 1200 | O49: 66 Düsen | P49: -1.05e-05 | Q49: 0.0067197 | R49: 0.4269959 | S49: =Prim_1200_K^2*P46+Q49*Prim_1200_K+R49 -> 1.003086941
C50: =VLOOKUP("Düsenvariante",Legende,IF(E$19="German",1,IF(E$19="English",2,3))) -> Düsenvariante | D50: =VLOOKUP("Temperatur-differenz VL - RL",Legende,IF(Sprache="German",1,IF(Sprache="English",2,3))) -> Temperatur-differenz VL - RL | E50: =VLOOKUP("Ausblas-temperatur",Legende,IF(Sprache="German",1,IF(Sprache="English",2,3))) -> Ausblas-temperatur | F50: =VLOOKUP("erforderlicher Primärdruck",Legende,IF(Sprache="German",1,IF(Sprache="English",2,3))) -> erforderlicher Primärdruck | G50: =VLOOKUP("Primärleistung",Legende,IF(Sprache="German",1,IF(Sprache="English",2,3))) -> Primärleistung | H50: =IF(Sprache="German","Sekundär-kühlleistung (sensibel)","Secondary cooling capacity (sensible)") -> Sekundär-kühlleistung (sensibel) | I50: =IF(Sprache="German","Sekundär-kühlleistung (total)","Secondary cooling capacity (total)") -> Sekundär-kühlleistung (total) | J50: =IF(Sprache="German","Gesamtkühlleistung (sensibel)","Total cooling capacity (sensible)") -> Gesamtkühlleistung (sensibel) | N50: M 1200 | O50: 90 Düsen | P50: -1.05e-05 | Q50: 0.0067197 | R50: 0.4269959 | S50: =Prim_1200_M^2*P49+Q50*Prim_1200_M+R50 -> 0.7315188597
B51: =IF($E$48="G",">","") ->  | C51: G | D51: =IF(F51="-","-",(I51/$E$45*3.6/4.186)) -> - | E51: =IF(F51<>"-",V30,"-") -> - | F51: =IF(BG=900,IF(AND(Prim_900_G<200,Prim_900_G>50),Prim_900_G,"-"),IF(AND(Prim_1200_G<200,Prim_1200_G>50 ),Prim_1200_G,"-")) -> - | G51: =IF(F51="-","-",-($E$31-$E$39)*$E$38*1.188/3.6*1.007) -> - | H51: =IF(AND(WÜ=AH20,BG=900,F51<>"-"),T60,IF(AND(WÜ=AH20,BG=1200,F51<>"-"),T68,IF(AND(OR(WÜ=AH19,WÜ=AH21),BG=1200,F51<>"-"),T64,IF(AND(OR(WÜ=AH19,WÜ=AH21),BG=900,F51<>"-"),T56,"-")))) -> - | I51: =IF(AND(OR(WÜ=AH19,WÜ=AH21),BG=900,F51<>"-"),U56+H51,IF(AND(WÜ=AH20,BG=1200,F51<>"-"),U68+H51,IF(AND(OR(WÜ=AH19,WÜ=AH21),BG=1200,F51<>"-"),U64+H51,IF(AND(WÜ=AH20,BG=900,F51<>"-"),U60+H51,"-")))) -> - | J51: =IF(F51="-","-",H51+G51) -> - | N51: H 1200 | O51: 105 Düsen | P51: -1.05e-05 | Q51: 0.0067197 | R51: 0.4269959 | S51: =Prim_1200_H^2*P50+Q51*Prim_1200_H+R51 -> 0.6496745931
B52: =IF($E$48="K",">","") ->  | C52: K | D52: =IF(F52="-","-",(I52/$E$45*3.6/4.186)) -> -6.822464952 | E52: =IF(F52<>"-",V31,"-") -> 16.12845128 | F52: =IF(BG=900,IF(AND(Prim_900_K<200,Prim_900_K>50),Prim_900_K,"-"),IF(AND(Prim_1200_K<200,Prim_1200_K>50 ),Prim_1200_K,"-")) -> 175.53372 | G52: =IF(F52="-","-",-($E$31-$E$39)*$E$38*1.188/3.6*1.007) -> -212.6784 | H52: =IF(AND(OR(WÜ=AH19,WÜ=AH21),BG=900,F52<>"-"),T57,IF(AND(WÜ=AH20,BG=1200,F52<>"-"),T69,IF(AND(OR(WÜ=AH19,WÜ=AH21),BG=1200,F52<>"-"),T65,IF(AND(WÜ=AH20,BG=900,F52<>"-"),T61,"-")))) -> -1296.721473 | I52: =IF(AND(OR(WÜ=AH19,WÜ=AH21),BG=900,Prim_900_K<200,Prim_900_K>50),U57+H52,IF(AND(WÜ=AH20,BG=1200,F52<>"-"),U69+H52,IF(AND(OR(WÜ=AH19,WÜ=AH21),BG=1200,F52<>"-"),U65+H52,IF(AND(WÜ=AH20,BG=900,F52<>"-"),U61+H52,"-")))) -> -1586.602127 | J52: =IF(F52="-","-",H52+G52) -> -1509.399873
B53: =IF($E$48="M",">","") -> > | C53: M | D53: =IF(F53="-","-",(I53/$E$45*3.6/4.186)) -> -5.279604326 | E53: =IF(F53="-","-",V32) -> 15.75194316 | F53: =IF(BG=900,IF(AND(Prim_900_M<200,Prim_900_M>50),Prim_900_M,"-"),IF(AND(Prim_1200_M<200,Prim_1200_M>50 ),Prim_1200_M,"-")) -> 101.98332 | G53: =IF(F53="-","-",-($E$31-$E$39)*$E$38*1.188/3.6*1.007) -> -212.6784 | H53: =IF(AND(OR(WÜ=AH19,WÜ=AH21),BG=900,F53<>"-"),T58,IF(AND(WÜ=AH20,BG=1200,F53<>"-"),T70,IF(AND(OR(WÜ=AH19,WÜ=AH21),BG=1200,F53<>"-"),T66,IF(AND(WÜ=AH20,BG=900,F53<>"-"),T47,"-")))) -> -1003.475481 | I53: =IF(AND(OR(WÜ=AH19,WÜ=AH21),BG=900,F53<>"-"),U58+H53,IF(AND(WÜ=AH20,BG=1200,F53<>"-"),U70+H53,IF(AND(OR(WÜ=AH19,WÜ=AH21),BG=1200,F53<>"-"),U66+H53,IF(AND(WÜ=AH20,BG=900,F53<>"-"),U47+H53,"-")))) -> -1227.801317 | J53: =IF(F53="-","-",H53+G53) -> -1216.153881
B54: =IF($E$48="H",">","") ->  | C54: H | D54: =IF(F54="-","-",(I54/$E$45*3.6/4.186)) -> -4.460215049 | E54: =IF(F54<>"-",V33,"-") -> 16.14737685 | F54: =IF(BG=900,IF(AND(Prim_900_H<200,Prim_900_H>50),Prim_900_H,"-"),IF(AND(Prim_1200_H<200,Prim_1200_H>50 ),Prim_1200_H,"-")) -> 60.703 | G54: =IF(F54="-","-",-($E$31-$E$39)*$E$38*1.188/3.6*1.007) -> -212.6784 | H54: =IF(AND(OR(WÜ=AH19,WÜ=AH21),BG=900,F54<>"-"),T59,IF(AND(WÜ=AH20,BG=1200,F54<>"-"),T71,IF(AND(OR(WÜ=AH19,WÜ=AH21),BG=1200,F54<>"-"),T67,IF(AND(WÜ=AH20,BG=900,F54<>"-"),T63,"-")))) -> -847.7370961 | I54: =IF(AND(OR(WÜ=AH19,WÜ=AH21),BG=900,F54<>"-"),U59+H54,IF(AND(WÜ=AH20,BG=1200,F54<>"-"),U71+H54,IF(AND(OR(WÜ=AH19,WÜ=AH21),F54<>"-"),U67+H54,IF(AND(WÜ=AH20,BG=900,F54<>"-"),U63+H54,"-")))) -> -1037.247789 | J54: =IF(F54="-","-",H54+G54) -> -1060.415496
C55: =VLOOKUP("Heizen",Legende,IF(E$19="German",1,IF(E$19="English",2,3))) -> Heizen | O55: Kühlen | Q55: Spezifische Kühlleistung in Nennpunkt | S55: spezifische Kühlleistung Qsek | T55: Sekundärleistung | U55: Latentkühlleistung (Verlust durch kondensierenden Wasser)
C56: =VLOOKUP("Düsenvariante",Legende,IF(E$19="German",1,IF(E$19="English",2,3))) -> Düsenvariante | D56: =VLOOKUP("Temperatur-differenz VL - RL",Legende,IF(Sprache="German",1,IF(Sprache="English",2,3))) -> Temperatur-differenz VL - RL | E56: =VLOOKUP("Ausblas-temperatur",Legende,IF(Sprache="German",1,IF(Sprache="English",2,3))) -> Ausblas-temperatur | F56: =VLOOKUP("erforderlicher Primärdruck",Legende,IF(Sprache="German",1,IF(Sprache="English",2,3))) -> erforderlicher Primärdruck | G56: =VLOOKUP("Primärleistung",Legende,IF(Sprache="German",1,IF(Sprache="English",2,3))) -> Primärleistung | H56: =VLOOKUP("Sekundär-leistung",Legende,IF(Sprache="German",1,IF(Sprache="English",2,3))) -> Sekundär-leistung | I56: =IF(Sprache="German","Gesamt-Heizleistung","Total heating capacity") -> Gesamt-Heizleistung | M56: G | N56: HFF 900 | O56: 2 L | Q56: ang | R56: 64 | S56: =R56*Faktor_Prim_900_G*Kor_WT_2L_900*KOR_WANNE*KORREKT_LATENT*Korrekturfaktor_ELEKT_NAcherehitzer -> 76.36508865 | T56: =S56*($E$42-$E$31) -> -1527.301773 | U56: =(T56/$P$17-T56) -> -341.4266262
B57: =IF($E$48="G",">","") ->  | C57: G | D57: =IF(F57="-","-",(H57/$G$45*3.6/4.186)) -> - | E57: =IF(F57<>"-",W30,"-") -> - | F57: =IF(BG=900,IF(AND(Prim_900_G<200,Prim_900_G>50),Prim_900_G,"-"),IF(AND(Prim_1200_G<200,Prim_1200_G>50 ),Prim_1200_G,"-")) -> - | G57: =IF(F57="-","-",-($G$31-$G$39)*$E$38*1.188/3.6*1.007) -> - | H57: =IF(AND(OR(WÜ=AH19,WÜ=AH21),BG=900,F57<>"-"),T73,IF(AND(WÜ=AH20,BG=1200,F57<>"-"),T85,IF(AND(OR(WÜ=AH19,WÜ=AH21),BG=1200,F57<>"-"),T81,IF(AND(WÜ=AH20,BG=900,F57<>"-"),T77,"-")))) -> - | I57: =IF(F57<>"-",H57+G57,"-") -> - | M57: K | N57: HFF 900 | O57: 2 L | Q57: ge. | R57: 65.879448 | S57: =R57*KOR_WANNE*KORREKT_LATENT*Korrekturfaktor_ELEKT_NAcherehitzer*Kor_WT_2L_900*Faktor_Prim_900_k -> 67.14612016 | T57: =S57*($E$42-$E$31) -> -1342.922403 | U57: =(T57/$P$17-T57) -> -300.2088215
B58: =IF($E$48="K",">","") ->  | C58: K | D58: =IF(F58="-","-",(H58/$G$45*3.6/4.186)) -> 9.489916343 | E58: =IF(F58<>"-",W31,"-") -> 28.53695422 | F58: =IF(BG=900,IF(AND(Prim_900_K<200,Prim_900_K>50),Prim_900_K,"-"),IF(AND(Prim_1200_K<200,Prim_1200_K>50 ),Prim_1200_K,"-")) -> 175.53372 | G58: =IF(F58="-","-",-($G$31-$G$39)*$E$38*1.188/3.6*1.007) -> -106.3392 | H58: =IF(AND(OR(WÜ=AH19,WÜ=AH21),BG=900,F58<>"-"),T74,IF(AND(WÜ=AH20,BG=1200,F58<>"-"),T86,IF(AND(OR(WÜ=AH19,WÜ=AH21),BG=1200,F58<>"-"),T82,IF(AND(WÜ=AH20,BG=900,F58<>"-"),T78,"-")))) -> 1103.466384 | I58: =IF(AND(F58<>"-"),H58+G58,"-") -> 997.1271837 | M58: M | N58: HFF 900 | O58: 2 L | Q58: ang. | R58: 66 | S58: =R58*Korrekturfaktor_ELEKT_NAcherehitzer*KORREKT_LATENT*KOR_WANNE*Faktor_Prim_900_M*Kor_WT_2L_900 -> 52.59274477 | T58: -1051.854895 | U58: -235.1410013
B59: =IF($E$48="M",">","") -> > | C59: M | D59: =IF(F59="-","-",(H59/$G$45*3.6/4.186)) -> 7.419477353 | E59: =IF(F59<>"-",W32,"-") -> 28.39328408 | F59: =IF(BG=900,IF(AND(Prim_900_M<200,Prim_900_M>50),Prim_900_M,"-"),IF(AND(Prim_1200_M<200,Prim_1200_M>50 ),Prim_1200_M,"-")) -> 101.98332 | G59: =IF(F59="-","-",-($G$31-$G$39)*$E$38*1.188/3.6*1.007) -> -106.3392 | H59: =IF(AND(OR(WÜ=AH19,WÜ=AH21),BG=900,F59<>"-"),T75,IF(AND(WÜ=AH20,BG=1200,F59<>"-"),T87,IF(AND(OR(WÜ=AH19,WÜ=AH21),BG=1200,F59<>"-"),T83,IF(AND(WÜ=AH20,BG=900,F59<>"-",S32>50),T79,"-")))) -> 862.7203389 | I59: =IF(AND(F59<>"-"),H59+G59,"-") -> 756.3811389 | M59: H | N59: HFF 900 | O59: 2 L | Q59: ang. | R59: 68 | S59: =R59*KOR_WANNE*KORREKT_LATENT*Korrekturfaktor_ELEKT_NAcherehitzer*Kor_WT_2L_900*Faktor_Prim_900_H -> 43.01107976 | T59: -860.2215951 | U59: -192.3015885
B60: =IF($E$48="H",">","") ->  | C60: H | D60: =IF(F60="-","-",(H60/$G$45*3.6/4.186)) -> 5.889288705 | E60: =IF(F60<>"-",W33,"-") -> 27.36862403 | F60: =IF(BG=900,IF(AND(Prim_900_H<200,Prim_900_H>50),Prim_900_H,"-"),IF(AND(Prim_1200_H<200,Prim_1200_H>50 ),Prim_1200_H,"-")) -> 60.703 | G60: =IF(F60="-","-",-($G$31-$G$39)*$E$38*1.188/3.6*1.007) -> -106.3392 | H60: =IF(AND(OR(WÜ=AH19,WÜ=AH21),BG=900,F60<>"-"),T76,IF(AND(WÜ=AH20,BG=1200,F60<>"-"),T88,IF(AND(OR(WÜ=AH19,WÜ=AH21),BG=1200,F60<>"-"),T84,IF(AND(WÜ=AH20,BG=900,F60<>"-"),T80,"-")))) -> 684.7934033 | I60: =IF(AND(F60<>"-"),H60+G60,"-") -> 578.4542033 | M60: G | N60: HFF 900 | O60: 4 L | Q60: ang. | R60: 63 | S60: =R60*KOR_WANNE*KORREKT_LATENT*Korrekturfaktor_ELEKT_NAcherehitzer*Faktor_Prim_900_G*Kor_WT_4L_900 -> 74.27413411 | T60: -1485.482682 | U60: -332.0780146
M61: K | N61: HFF 900 | O61: 4 L | Q61: ge. | R61: 64.381868 | S61: =KOR_WANNE*KORREKT_LATENT*Korrekturfaktor_ELEKT_NAcherehitzer*Kor_WT_4L_900*Faktor_Prim_900_k*R61 -> 64.83607364 | T61: -1296.721473 | U61: -289.8806545
D63: =VLOOKUP("Raumabsorption",Legende,IF(Sprache="German",1,IF(Sprache="English",2,3)))&":" -> Raumabsorption: | E63: =RaumabsorptionBerechnet -> 6.593456357 | F63: =IF(Sprache="German","=> Wert aus Berechnung Tabellenblatt Raumabsoprtion", "=< Value of Calculation of data sheet Raumabsorption") -> => Wert aus Berechnung Tabellenblatt Raumabsoprtion | M63: H | N63: HFF 900 | O63: 4 L | Q63: gemessen | R63: 67.823094 | S63: =R63*KOR_WANNE*KORREKT_LATENT*Korrekturfaktor_ELEKT_NAcherehitzer*Kor_WT_4L_900*Faktor_Prim_900_H -> 42.3868548 | T63: =S63*($E$42-$E$31) -> -847.7370961 | U63: -189.5106925
M64: G | N64: HFF 1200 | O64: 2L | Q64: gemessen | R64: 78.652557 | S64: =KOR_WANNE*KORREKT_LATENT*Korrekturfaktor_ELEKT_NAcherehitzer*Faktor_Prim_1200_G*Kor_WT_2L_1200*R64 -> 80.30167557 | T64: =S64*($E$42-$E$31) -> -1606.033511 | U64: -359.0270194
B65: =VLOOKUP("Akustische Daten",Legende,IF(Sprache="German",1,IF(Sprache="English",2,3))) -> Akustische Daten | D65: =VLOOKUP("Düsenvariante",Legende,IF(Sprache="German",1,IF(Sprache="English",2,3))) -> Düsenvariante | E65: =VLOOKUP("Schallleistung",Legende,IF(Sprache="German",1,IF(Sprache="English",2,3))) -> Schallleistung | F65: =VLOOKUP("Schalldruck (NC)*",Legende,IF(Sprache="German",1,IF(Sprache="English",2,3))) -> Schalldruck (NC)* | G65: =VLOOKUP("Schalldruck (LP)*",Legende,IF(Sprache="German",1,IF(Sprache="English",2,3))) -> Schalldruck (LP)* | M65: K | N65: HFF 1200 | O65: 2 L | Q65: angenommen | R65: 79 | S65: =KOR_WANNE*KORREKT_LATENT*Korrekturfaktor_ELEKT_NAcherehitzer*Faktor_Prim_1200_K*Kor_WT_2L_1200*R65 -> 63.05939243 | T65: =S65*($E$42-$E$31) -> -1261.187849 | U65: -281.937152
C66: =IF($E$48="G",">","") ->  | D66: G | E66: =IF(AND(F51<>"-"),IF(BG=1200,(IF(T105>25,T105,"<25 dB(A)")),(IF(T101>25,T101,"<25 dB(A)"))),"-") -> - | F66: =IF(F51<>"-",IF(BG=1200,(IF(V127>15,V127,"<15 dB(C)")),(IF(V123>15,V123,"<15 dB(C)"))),"-") -> - | G66: =IF(E66="-","-",IF(E66="<25 dB(A)",25-$E$63,E66-$E$63)) -> - | M66: M | N66: HFF 1200 | O66: 2 L | Q66: ge. | R66: 79 | S66: =KOR_WANNE*KORREKT_LATENT*Korrekturfaktor_ELEKT_NAcherehitzer*Faktor_Prim_1200_M*Kor_WT_2L_1200*R66 -> 45.98717515 | T66: =S66*($E$42-$E$31) -> -919.7435029 | U66: -205.6076453
C67: =IF($E$48="K",">","") ->  | D67: K | E67: =IF(AND(F52<>"-"),IF(BG=1200,(IF(T106>25,T106,"<25 dB(A)")),(IF(T102>25,T102,"<25 dB(A)"))),"-") -> 40.5025664 | F67: =IF(F52<>"-",IF(BG=1200,(IF(V128>23,V128,"<23 dB(C)")),(IF(V124>23,V124,"<23 dB(C)"))),"-") -> 38.02067813 | G67: =IF(E67="-","-",IF(E67="<25 dB(A)",25-$E$63,E67-$E$63)) -> 33.90911004 | M67: H | N67: HFF 1200 | O67: 2 L | Q67: ang. | R67: 80 | S67: =KOR_WANNE*KORREKT_LATENT*Korrekturfaktor_ELEKT_NAcherehitzer*Faktor_Prim_1200_H*Kor_WT_2L_1200*R67 -> 41.35899569 | T67: -827.1799138 | U67: -184.9151571
C68: =IF($E$48="M",">","") -> > | D68: M | E68: =IF(AND(F53<>"-"),IF(BG=1200,(IF(T107>25,T107,"<25 dB(A)")),(IF(T103>25,T103,"<25 dB(A)"))),"-") -> 30.77253765 | F68: =IF(F53<>"-",IF(BG=1200,(IF(V129>23,V129,"<23 dB(C)")),(IF(V125>23,V125,"<23 dB(C)"))),"-") -> <23 dB(C) | G68: =IF(E68="-","-",IF(E68="<25 dB(A)",25-$E$63,E68-$E$63)) -> 24.17908129 | M68: G | N68: HFF 1200 | O68: 4 L | Q68: ang. | R68: 77 | S68: =KOR_WANNE*KORREKT_LATENT*Korrekturfaktor_ELEKT_NAcherehitzer*Faktor_Prim_1200_G*Kor_WT_4L_1200*R68 -> 78.48048837 | T68: -1569.609767 | U68: -350.8845317
C69: =IF($E$48="H",">","") ->  | D69: H | E69: =IF(AND(F54<>"-"),IF(BG=1200,(IF(T108>25,T108,"<25 dB(A)")),(IF(T104>25,T104,"<25 dB(A)"))),"-") -> <25 dB(A) | F69: =IF(AND(F54<>"-"),IF(BG=1200,(IF(V130>23,V130,"<23 dB(C)")),(IF(V126>25,V126,"<23 dB(C)"))),"-") -> <23 dB(C) | G69: =IF(E69="-","-",IF(E69="<25 dB(A)",25-$E$63,E69-$E$63)) -> 18.40654364 | M69: K | N69: HFF 1200 | O69: 4 L | Q69: ang. | R69: 78 | S69: =KOR_WANNE*KORREKT_LATENT*Korrekturfaktor_ELEKT_NAcherehitzer*Faktor_Prim_1200_K*Kor_WT_4L_1200*R69 -> 62.155062 | T69: -1243.10124 | U69: -277.8939106
M70: M | N70: HFF 1200 | O70: 4 L | Q70: ang. | R70: 78 | S70: =KOR_WANNE*KORREKT_LATENT*Korrekturfaktor_ELEKT_NAcherehitzer*Faktor_Prim_1200_M*Kor_WT_4L_1200*R70 -> 45.32767621 | T70: -906.5535243 | U70: -202.6590401
M71: H | N71: HFF 1200 | O71: 4 L | Q71: ang | R71: 79 | S71: =KOR_WANNE*KORREKT_LATENT*Korrekturfaktor_ELEKT_NAcherehitzer*Faktor_Prim_1200_H*Kor_WT_4L_1200*R71 -> 40.77240216 | T71: -815.4480431 | U71: -182.2925103
M72: Düsen | Q72: spezifische Nennleistung in Nennpunkt | S72: Qsek (W/K) inklusive Faktor Wärmetauscher berücksichtigt | T72: Qsek absolut
M73: G | N73: HFF 900 | O73: 2L | Q73: wie kühlen | R73: 64 | S73: =R73*KOR_WANNE*Korrekturfaktor_ELEKT_NAcherehitzer*Faktor_Prim_900_G*Kor_WT_2L_900_Heizen -> 77.8670112 | T73: =S73*($G$42-$G$31) -> 2180.276314
M74: K | N74: HFF 900 | O74: 2 L (gleiche Werte wie kühlen) | Q74: wie kühlen | R74: 65.879448 | S74: =R74*KOR_WANNE*Korrekturfaktor_ELEKT_NAcherehitzer*Faktor_Prim_900_k*Kor_WT_2L_900_Heizen -> 68.46672718 | T74: 1917.068361
M75: M | N75: HFF 900 | O75: 2 L | Q75: wie kühlen | R75: 66 | S75: =R75*KOR_WANNE*Korrekturfaktor_ELEKT_NAcherehitzer*Faktor_Prim_900_M*Kor_WT_2L_900_Heizen -> 53.62712095 | T75: 1501.559387
M76: H | N76: HFF 900 | O76: 2 L | Q76: wie kühlen | R76: 68 | S76: =R76*KOR_WANNE*Korrekturfaktor_ELEKT_NAcherehitzer*Faktor_Prim_900_H*Kor_WT_2L_900_Heizen -> 43.85700702 | T76: 1227.996197
M77: G | N77: HFF 900 | O77: 4 L | Q77: ang. | R77: 35.593319 | S77: =R77*KOR_WANNE*Korrekturfaktor_ELEKT_NAcherehitzer*Faktor_Prim_900_G*Kor_WT_4L_900_Heizen -> 46.13653669 | T77: 1291.823027
B78: ã LTG Aktiengesellschaft - 2025-04-10 | M78: K | N78: HFF 900 | O78: 4 L (gemessen) | Q78: ge. | R78: 35.593319 | S78: =R78*KOR_WANNE*Korrekturfaktor_ELEKT_NAcherehitzer*Faktor_Prim_900_k*Kor_WT_4L_900_Heizen -> 39.4095137 | T78: 1103.466384
B79: =IF(Sprache="German","Die Angaben über den Lieferumfang, Aussehen, Leistungen sowie Maße und Gewichte entsprechen den zum Zeitpunkt der Veröffentlichung vorhandenen Kenntnissen. Änderungen bleiben jederzeit vorbahelten.","The details about the delivery, appearance, performance, dimensions and weights correspond to the knowledge available at the time of publication. Changes are reserved anytime.") -> Die Angaben über den Lieferumfang, Aussehen, Leistungen sowie Maße und Gewichte entsprechen den zum Zeitpunkt der Veröffentlichung vorhandenen Kenntnissen. Änderungen bleiben jederzeit vorbahelten. | M79: M | N79: HFF 900 | O79: 4 L | Q79: ang. | R79: 35.593319 | S79: =R79*KOR_WANNE*Korrekturfaktor_ELEKT_NAcherehitzer*Faktor_Prim_900_M*Kor_WT_4L_900_Heizen -> 30.81144067 | T79: 862.7203389
B80: =VLOOKUP("Eine Fehlerfreiheit des Programms kann nicht zugesichert werden. Im Zweifel gelten die technischen Daten der aktuellen LTG Bauteilmappe.",Legende,IF(Sprache="German",1,IF(Sprache="English",2,3))) -> Eine Fehlerfreiheit des Programms kann nicht zugesichert werden. Im Zweifel gelten die technischen Daten der aktuellen LTG Bauteilmappe. | M80: H | N80: HFF 900 | O80: 4 L | Q80: ang- | R80: 35.593319 | S80: =R80*KOR_WANNE*Korrekturfaktor_ELEKT_NAcherehitzer*Faktor_Prim_900_H*Kor_WT_4L_900_Heizen -> 24.45690726 | T80: 684.7934033
B81: =VLOOKUP("Aus Programmierfehlern entstandener Schaden geht nicht zu Lasten der LTG. Technische Änderungen im Rahmen der Weiterentwicklung vorbehalten.",Legende,IF(Sprache="German",1,IF(Sprache="English",2,3))) -> Aus Programmierfehlern entstandener Schaden geht nicht zu Lasten der LTG. Technische Änderungen im Rahmen der Weiterentwicklung vorbehalten. | M81: G | N81: HFF 1200 | O81: 2 L | R81: 78.652557 | S81: =R81*KOR_WANNE*Korrekturfaktor_ELEKT_NAcherehitzer*Faktor_Prim_1200_G*Kor_WT_2L_1200_Heizen -> 75.63239865 | T81: 2117.707162
M82: K | N82: HFF 1200 | O82: 2 L (gleiche Werte wie kühlen) | Q82: wie kühlen | R82: 79 | S82: =R82*KOR_WANNE*Korrekturfaktor_ELEKT_NAcherehitzer*Faktor_Prim_1200_K*Kor_WT_2L_1200_Heizen -> 59.39269726 | T82: 1662.995523
M83: M | N83: HFF 1200 | O83: 2 L | Q83: wie kühlen | R83: 79 | S83: =R83*KOR_WANNE*Korrekturfaktor_ELEKT_NAcherehitzer*Faktor_Prim_1200_M*Kor_WT_2L_1200_Heizen -> 43.31317296 | T83: 1212.768843
M84: H | N84: HFF 1200 | O84: 2 L | Q84: wie kühlen | R84: 80 | S84: =R84*KOR_WANNE*Korrekturfaktor_ELEKT_NAcherehitzer*Faktor_Prim_1200_H*Kor_WT_2L_1200_Heizen -> 38.95410684 | T84: 1090.714992
M85: G | N85: HFF 1200 | O85: 4 L | Q85: wie kühlen | R85: 42 | S85: =R85*KOR_WANNE*Korrekturfaktor_ELEKT_NAcherehitzer*Faktor_Prim_1200_G*Kor_WT_4L_1200_Heizen -> 43.56666094 | T85: 1219.866506
M86: K | N86: HFF 1200 | O86: 4 L | Q86: wie kühlen | R86: 42 | S86: =R86*KOR_WANNE*Korrekturfaktor_ELEKT_NAcherehitzer*Faktor_Prim_1200_K*Kor_WT_4L_1200_Heizen -> 34.06161261 | T86: 953.725153
M87: M | N87: HFF 1200 | O87: 4 L | Q87: wie kühlen | R87: 42 | S87: =R87*KOR_WANNE*Korrekturfaktor_ELEKT_NAcherehitzer*Faktor_Prim_1200_M*Kor_WT_4L_1200_Heizen -> 24.8400323 | T87: 695.5209044
M88: H | N88: HFF 1200 | O88: 4 L | Q88: wie kühlen | R88: 42 | S88: =R88*KOR_WANNE*Korrekturfaktor_ELEKT_NAcherehitzer*Faktor_Prim_1200_H*Kor_WT_4L_1200_Heizen -> 22.06086373 | T88: 617.7041843
O93: Wasserseitiger Druckverlust
O94: Paramter | P94: a | Q94: b | R94: c | S94: in kPA (Kühlen) | T94: in kPA (Heizen)
N95: HFF 900 | O95: 3 reihig 4 Leitersystem Heizen | P95: 0.00032419 | Q95: 0.022596 | R95: -0.81296165 | T95: =P95*WWM^2+WWM*Q95+R95 -> 4.68853835
N96: HFF 900 | O96: 3 reihig 4 Leitersystem Kühlen | P96: 0.00032262 | Q96: 0.03177847 | R96: -1.58928563 | S96: =P96*KWM^2+KWM*Q96+R96 -> 17.67120837
N97: HFF 900 | O97: 2 reihig 2 Leitersystem | P97: 0.00030287 | Q97: 0.01569761 | R97: -0.31689656 | S97: =P97*KWM^2+KWM*Q97+R97 -> 14.93742544 | T97: =P97*WWM^2+WWM*Q97+R97 -> 4.28156444
N98: 1200 | O98: 2 Leiter | P98: 0.000382 | Q98: 0.014774 | R98: 0.077316 | S98: =P98*KWM^2+KWM*Q98+R98 -> 18.312116 | T98: =P98*WWM^2+WWM*Q98+R98 -> 5.374716
N99: Schallpegel | O99: Akustik A Bewertung
P100: a | Q100: b | R100: c | S100: LWA in dB | T100: Für Marko
N101: HFF 900 | O101: G | P101: 19.32845728 | Q101: -59.38363743 | S101: =P101*LN(Prim_900_G)+Q101-1.25 -> 51.0383942 | T101: =IF(S101>0,S101,0) -> 51.0383942
N102: HFF 900 | O102: K (gemessen) | P102: 19.32845728 | Q102: -59.38363743 | S102: =P102*LN(Prim_900_K)+Q102 -> 40.5025664 | T102: =IF(S102>0,S102,0) -> 40.5025664
N103: HFF 900 | O103: M | P103: 14.65742149 | Q103: -36.18324114 | S103: =P103*LN(Prim_900_M)+Q103-0.832 -> 30.77253765 | T103: =IF(S103<100,S103,0) -> 30.77253765
N104: HFF 900 | O104: H (gemessen) | P104: 14.65742149 | Q104: -36.18324114 | S104: =P104*LN(Prim_900_H)+Q104 -> 24.00003066 | T104: 24.00003066
N105: HFF 1200 | O105: G | P105: 14.03663274 | Q105: -41.43523385 | S105: =P105*LN(Prim_1200_G)+Q105 -> 31.10371422 | T105: =IF(S105>0,S105,0) -> 31.10371422
N106: HFF 1200 | O106: K (alles auf Prim bezogen) | P106: 14.03663274 | Q106: -41.43523385 | S106: =P105*LN(Prim_1200_K)+Q105+1.38 -> 24.86151537 | T106: =IF(S106>0,S106,0) -> 24.86151537
N107: HFF 1200 | O107: M (alles auf Prim bezogen) | P107: 14.03663274 | Q107: -41.43523385 | S107: =P107*LN(Prim_1200_M)+Q107+1.35+1.38 -> 15.94636868 | T107: 15.94636868
N108: HFF 1200 | O108: H (alles auf Prim bezogen) | P108: 14.03663274 | Q108: -41.43523385 | S108: =P108*LN(Prim_1200_H)+Q108+1.35+1.38+0.67 -> 11.89343147 | T108: 11.89343147
P114: Nennvolumenstrom [kg/h] (Kühlen) | Q114: Nennvolumenstrom [kg/h] (Heizen)
N115: HFF 900 | O115: 2 Leiter | P115: 200 | Q115: 150
N116: HFF 900 | O116: 4 Leiter | P116: 200 | Q116: 100
N117: HFF 1200 | O117: 2 Leiter | P117: 270 | Q117: 200
N118: HFF 1200 | O118: 4 Leiter | P118: 270 | Q118: 200
N121: Schallpegel
P122: a | Q122: b | R122: c | S122: D | T122: e | U122: f | V122: NC
N123: HFF 900 | O123: Düsenanzahl 36 | P123: 9e-10 | Q123: -6.788e-07 | R123: 0.0001980606 | S123: -0.0257090909 | T123: 1.489212121 | U123: -8 | V123: =P123*Prim_900_G^5+Q123*Prim_900_G^4+R123*Prim_900_G^3+S123*Prim_900_G^2+T123*Prim_900_G^1+U123 -> 240.7425138
N124: HFF 900 | O124: Düsenanzahl 48 | P124: 9e-10 | Q124: -6.788e-07 | R124: 0.0001980606 | S124: -0.0257090909 | T124: 1.489212121 | U124: -8 | V124: =P124*Prim_900_K^5+Q124*Prim_900_K^4+R124*Prim_900_K^3+S124*Prim_900_K^2+T124*Prim_900_K^1+U124 -> 38.02067813
N125: HFF 900 | O125: Düsenanzahl 66 | P125: -1.044e-05 | Q125: 0.00409643 | R125: -0.38837302 | S125: 29.30952381 | V125: =P125*Prim_900_M^3+Q125*Prim_900_M^2+R125*Prim_900_M^1+S125 -> 21.23369651
N126: HFF 900 | O126: Düsenanzahl 80 | P126: -1.044e-05 | Q126: 0.00409643 | R126: -0.38837302 | S126: 29.30952381 | V126: =P126*Prim_900_H^3+Q126*Prim_900_H^2+R126*Prim_900_H+S126 -> 18.4936267
N127: HFF 1200 | O127: 48 Düsen | P127: -6e-06 | Q127: 0.0124 | R127: 21.297 | V127: =P127*Prim_1200_G^2+Q127*Prim_1200_G^1+R127 -> 23.28874561
N128: HFF 1200 | O128: 66 Düsen | P128: -6e-06 | Q128: 0.0124 | R128: 21.297 | V128: =P128*Prim_1200_K^2+Q128*Prim_1200_K^1+R128 -> 22.49918958
N129: HFF 1200 | O129: 90 Düsen | P129: -6e-06 | Q129: 0.0124 | R129: 21.297 | V129: =P129*Prim_1200_M^2+Q129*Prim_1200_M^1+R129 -> 21.89116585
N130: HFF 1200 | O130: 105 Düsen | P130: -6e-06 | Q130: 0.0124 | R130: 21.297 | V130: =P130*Prim_1200_H^2+Q130*Prim_1200_H^1+R130 -> 21.72435406
N134: Schalleistung (Für Makro) als Zahlenformat
O135: Schalldruck
M136: G | N136: =IF(AND(S30<200,S30>50),IF(BG=1200,(IF(T105>25,T105,"<25")),(IF(T101>25,T101,"<25"))),"") ->  | O136: =G66 -> -
M137: K | N137: =IF(AND(S31<200,S31>50),IF(BG=1200,(IF(T106>25,T106,"25")),(IF(T102>25,T102,"25"))),"") -> 40.5025664 | O137: =G67 -> 33.90911004
M138: M | N138: =IF(AND(S32<200,S32>50),IF(BG=1200,(IF(T107>25,T107,"25")),(IF(T103>25,T103,"25"))),"") -> 30.77253765 | O138: =G68 -> 24.17908129
M139: H | N139: =IF(AND(S33<200,S33>50),IF(BG=1200,(IF(T108>25,T108,"<25")),(IF(T104>25,T104,"<25"))),"") -> <25 | O139: =G69 -> 18.40654364

Sheet Raumabsorption
A1: LTG Aktiengesellschaft
B6: =VLOOKUP("Ermittlung der Raumabsorption im diffusen Schallfeld",Legende,IF(Sprache="German",1,IF(Sprache="English",2,3))) -> Ermittlung der Raumabsorption im diffusen Schallfeld
B9: =VLOOKUP("Raumabmessungen:",Legende,IF(Sprache="German",1,IF(Sprache="English",2,3))) -> Primärluftvolumenstrom
B11: =VLOOKUP("Breite:",Legende,IF(Sprache="German",1,IF(Sprache="English",2,3))) -> Breite: | C11: 4 | F11: =VLOOKUP("Raum-Schallabsorption",Legende,IF(Sprache="German",1,IF(Sprache="English",2,3))) -> Raum-Schallabsorption | G11: =IF((10*LOG10(0.163*((C11*C15*C13)/G15)/4))<0,0.001,(10*LOG10(0.163*((C11*C15*C13)/G15)/4))) -> 6.593456357
B13: =VLOOKUP("Höhe:",Legende,IF(Sprache="German",1,IF(Sprache="English",2,3))) -> Höhe: | C13: 2.8 | F13: =VLOOKUP("Äquivalente Absorptionsfläche:",Legende,IF(Sprache="German",1,IF(Sprache="English",2,3))) -> Äquivalente Absorptionsfläche: | G13: =0.163*((C11*C13*C15)/G15) -> 18.256
B15: =VLOOKUP("Tiefe:",Legende,IF(Sprache="German",1,IF(Sprache="English",2,3))) -> Tiefe: | C15: 6 | F15: =VLOOKUP("Gewählte Nachhallzeit:",Legende,IF(Sprache="German",1,IF(Sprache="English",2,3))) -> Gewählte Nachhallzeit: | G15: 0.6
B20: =VLOOKUP("Beispiele üblicher Nachhallzeiten:",Legende,IF(Sprache="German",1,IF(Sprache="English",2,3))) -> Baugröße:
C21: =VLOOKUP("Geräteauslegung:",Legende,IF(Sprache="German",1,IF(Sprache="English",2,3))) -> Geräteauslegung:
C22: =VLOOKUP("großes Hotelzimmer (V > 40 m^3)",Legende,IF(Sprache="German",1,IF(Sprache="English",2,3))) -> Gewählte Nachhallzeit: | D22: 1,0 s | G22: =VLOOKUP("Studios:",Legende,IF(Sprache="German",1,IF(Sprache="English",2,3))) -> Studios:
C23: =VLOOKUP("kleines Hotelzimmer (V < 40m^3)",Legende,IF(Sprache="German",1,IF(Sprache="English",2,3))) -> kleiner Büroraum: | D23: 0,5 s | G23: =VLOOKUP("Rundfunkstudio:",Legende,IF(Sprache="German",1,IF(Sprache="English",2,3))) -> Rundfunkstudio: | H23: 1
C24: =VLOOKUP("Büro:",Legende,IF(Sprache="German",1,IF(Sprache="English",2,3))) -> Büro: | G24: =VLOOKUP("Fernsehstudio:",Legende,IF(Sprache="German",1,IF(Sprache="English",2,3))) -> Fernsehstudio: | H24: 1.5
C25: =VLOOKUP("kleiner Büroraum:",Legende,IF(Sprache="German",1,IF(Sprache="English",2,3))) -> kleiner Büroraum: | D25: 0.5
C26: =VLOOKUP("Großraumbüro:",Legende,IF(Sprache="German",1,IF(Sprache="English",2,3))) -> Großraumbüro: | D26: 0.5 | G26: =VLOOKUP("Sonstige:",Legende,IF(Sprache="German",1,IF(Sprache="English",2,3))) -> Sonstige:
C27: =VLOOKUP("Besprechungsraum:",Legende,IF(Sprache="German",1,IF(Sprache="English",2,3))) -> Besprechungsraum: | D27: 1 | G27: =VLOOKUP("Gaststätten:",Legende,IF(Sprache="German",1,IF(Sprache="English",2,3))) -> Gaststätten: | H27: 1
G28: =VLOOKUP("Museen:",Legende,IF(Sprache="German",1,IF(Sprache="English",2,3))) -> Museen: | H28: 1.5
C29: =VLOOKUP("Wohngebäude:",Legende,IF(Sprache="German",1,IF(Sprache="English",2,3))) -> Wohngebäude: | G29: =VLOOKUP("Klassenräume:",Legende,IF(Sprache="German",1,IF(Sprache="English",2,3))) -> Klassenräume: | H29: 1
C30: =VLOOKUP("Wohn-/Schlafräume:",Legende,IF(Sprache="German",1,IF(Sprache="English",2,3))) -> Wohn-/Schlafräume: | D30: 0.5
C32: =VLOOKUP("Krankenhaus:",Legende,IF(Sprache="German",1,IF(Sprache="English",2,3))) -> Krankenhaus:
C33: =VLOOKUP("Bettenzimmer:",Legende,IF(Sprache="German",1,IF(Sprache="English",2,3))) -> Bettenzimmer: | D33: 1
C34: =VLOOKUP("Hallen, Korridore:",Legende,IF(Sprache="German",1,IF(Sprache="English",2,3))) -> Hallen, Korridore: | D34: 2
C35: =VLOOKUP("Untersuchungsräume:",Legende,IF(Sprache="German",1,IF(Sprache="English",2,3))) -> Gesamtleistung Kühlen | D35: 2
C36: =VLOOKUP("OP-Räume:",Legende,IF(Sprache="German",1,IF(Sprache="English",2,3))) -> OP-Räume: | D36: 3
A43: ã LTG Aktiengesellschaft - 2025-04-10
A44: =VLOOKUP("Eine Fehlerfreiheit des Programms kann nicht zugesichert werden. Im Zweifel gelten die technischen Daten der aktuellen LTG Bauteilmappe.",Legende,IF(Sprache="German",1,IF(Sprache="English",2,3))) -> Eine Fehlerfreiheit des Programms kann nicht zugesichert werden. Im Zweifel gelten die technischen Daten der aktuellen LTG Bauteilmappe.
A45: =VLOOKUP("Aus Programmierfehlern entstandener Schaden geht nicht zu Lasten der LTG. Technische Änderungen im Rahmen der Weiterentwicklung vorbehalten.",Legende,IF(Sprache="German",1,IF(Sprache="English",2,3))) -> Aus Programmierfehlern entstandener Schaden geht nicht zu Lasten der LTG. Technische Änderungen im Rahmen der Weiterentwicklung vorbehalten.

Sheet Legende - Legend
A1: Tel. +49 711 8201-0
A2: ã LTG Aktiengesellschaft - 2025-04-10
A3: Angaben zu Toleranzen sowie weitere Spezifikationen sind der aktuellen LTG Bauteilmappe zu entnehmen.
A4: Eine Fehlerfreiheit des Programms kann nicht zugesichert werden. Im Zweifel gelten die technischen Daten der aktuellen LTG Bauteilmappe.
A6: German | B6: English | C6: Italian
A7: 2-Leiter-System | B7: 2-pipe system
A8: 4-Leiter-System | B8: 4-pipe-system
A9: Akustische Daten | B9: Acoustic Data
A10: Ablufttemperatur | B10: Extract air temperature
A11: Angaben zu Toleranzen sowie weitere Spezifikationen sind der aktuellen LTG Bauteilmappe zu entnehmen. | B11: Tolerances and further technical informations are to be found in LTG documentation
A12: Ansaugtemperatur | B12: Intake air temperature
A13: Anzahl Luftanschlüsse | B13: Number of spigots for supply air
A14: Äquivalente Absorptionsfläche: | B14: Equivalent absorption area:
A15: Aus Programmierfehlern entstandener Schaden geht nicht zu Lasten der LTG. Technische Änderungen im Rahmen der Weiterentwicklung vorbehalten. | B15: Damage caused by programming errors is not at LTG expenses. Subject to technical specifications.
A16: Ausblas-temperatur | B16: Outlet air temperature
A17: Ausblas-temperatur | B17: Outlet air temperature
A18: Auswahl | B18: Choice
A19: Baugröße | B19: Size
A20: Baugröße: | B20: Size
A21: Bemerkungen | B21: Notes
A22: Besprechungsraum: | B22: Meeting room:
A23: Bettenzimmer: | B23: Bedroom:
A24: Breite: | B24: Width:
A25: Büro: | B25: Office:
A26: Drehzahlsteuerungeingangssignal 8V - 24V | B26: Fan speed control input signal 8V - 24V
A27: Drehzahlstufe | B27: Fan speed level
A28: Druckverlust nur Wärmeübertrager | B28: Pressure drop only heat exchanger
A29: Düsenvariante | B29: nozzle design
A30: Düsenvariante | B30: nozzle design
A31: Düsenvariante wählen | B31: select nozzle design
A32: Eigenkonvektion bei Warmwasservorlaufttemperatur 70 °C, Raumlufttemperatur 20 °C, Nennwassermenge | B32: Natural convection at water supply temperature 70 °C; room air temperature of 20°C and nominal hot water flow
A33: Eine Fehlerfreiheit des Programms kann nicht zugesichert werden. Im Zweifel gelten die technischen Daten der aktuellen LTG Bauteilmappe. | B33: Accuracy of selection software can not be ensured. In case of doubts data of LTG technical literature is valid.
A34: erforderlicher Primärdruck | B34: Required primary pressure
A35: Ermittlung der Raumabsorption im diffusen Schallfeld | B35: Calculation of room sound absorption in the diffuse sound field
A36: Fernsehstudio: | B36: TV studio
A37: Gaststätten: | B37: Restaurants:
A38: Geräteauslegung: | B38: Terminal design:
A39: Gerätetyp | B39: Type of appliance
A40: Gesamt-Heizleistung | B40: Total heating capacity
A41: Gesamt-Kühlleistung | B41: Total cooling capacity
A42: Gewählte Nachhallzeit: | B42: Selected reverberation period:
A43: großes Hotelzimmer (V > 40 m³) | B43: big Hotelroom (V > 40m³)
A44: Großraumbüro: | B44: Open-plan office:
A45: Hallen, Korridore: | B45: Hall, Corridor
A46: Heizen | B46: Heating
A47: Heizfall | B47: Heating mode
A48: Heizleistung | B48: Heating capacity
A49: Höhe: | B49: Height
A50: Induktionskontrolle | B50: Induction control
A51: Kaltwasser-Rücklauftemperatur | B51: Cold water return temperature
A52: Klassenräume: | B52: Class rooms:
A53: kleiner Büroraum: | B53: Small office room:
A54: kleines Hotelzimmer (V < 40m³) | B54: small Hotelroom (V > 40m³)
A55: Kondensatwanne | B55: Condensate tray
A56: Krankenhaus: | B56: Hospital:
A57: Kühlen | B57: Cooling
A58: Kühlfall | B58: Cooling mode
A59: Länge: | B59: Length
A60: Latente Kühlleistung | B60: Latent cooling capacity
A61: Legende für LTG Auslegungstabellen | B61: Legend for LTG Components Design Tables
A62: LTG Deckeninduktionsgerät HFF | B62: LTG Chilled Beam HFF
A63: Luftanschluss | B63: Air sided spigot
A64: mit Abluft-/Ansaugtemperatur | B64: With extract /intake air temperature
A65: Museen: | B65: Museeum:
A66: Nennbreite | B66: Nominal width
A67: Nenn-Wassermassenstrom | B67: Nominal water flow rate
A68: Nenn-Wassermassenstrom Heizen | B68: Nominal hot water flow rate
A69: Nenn-Wassermassenstrom Kühlen | B69: Nominal cold water flow rate
A70: Oberfläche Wärmeübertrager | B70: Surface Heat exchanger
A71: OP-Räume: | B71: Operation rooms
A72: Primärdruck | B72: Primary pressure
A73: Primärleistung | B73: Primary capacity
A74: Primärlufttemperatur | B74: Primary air temperature
A75: Primärluftvolumenstrom | B75: Primary air volume rate
A76: Raumabsorption | B76: Room absorption
A77: Raum-Schallabsorption | B77: Room sound absorpion
A78: relative Feuchte | B78: Relative room air humidity
A79: Rundfunkstudio: | B79: Radio studio
A80: Schalldruck (LP)* | B80: Sound pressure level (LP)
A81: Schalldruck (NC)* | B81: Sound pressure level (NC)*
A82: Schallleistung | B82: Sound power level
A83: Sekundär-leistung | B83: Secondary capacity
A84: Wert berechnet im Tabellenblatt Raumabsorption | B84: Value to be claculated in data sheet Raumabsoprtion
A85: Sekundaerluftvolumenstrom pro Gerät | B85: Secondary air flow rate per unit
A86: Sensible Kuehlleistung (kondensierend) | B86: Sensible cooling capacity
A87: Sonstige: | B87: Others:
A88: Studios: | B88: Studios:
A89: Taupunkttemperatur Raumluft | B89: Dew point temperature of room air
A90: Temperatur-differenz VL - RL | B90: Differential temperature inlet - outlet
A91: Tiefe: | B91: Depth:
A92: Toleranz ± 3 dB | B92: Tolerance ± 3 dB
A93: Untersuchungsräume: | B93: Medical inspection rooms
A94: Gesamtleistung Heizen | B94: Total Heating Capacity
A95: Gesamtleistung Kühlen | B95: Total Cooling Capacity
A96: Vorlauftemperatur | B96: Water inlet temperature
A97: Wärmeübertrager | B97: Heat exchanger
A98: Warmwasser-Rücklauftemperatur | B98: Hot water return temperature
A99: Wassergehalt Raumluft (Kühlfall) | B99: Humidity ration of room air
A100: Wassermassenstrom | B100: Water flow rate
A101: wasserseitige Kühlleistung | B101: Cooling capacity on waterside
A102: wasserseitiger Druckverlust | B102: Differential pressure on waterside
A103: Wohn-/Schlafräume: | B103: Living- and sleeping room:
A104: Wohngebäude: | B104: Residential building:
